Workbook

Sheet Лист1
K2: Приложение № 2 к Муниципальному контракту № _________ от «_____» _________ 2022г
A5: УТВЕРЖДАЮ: | L5: СОГЛАСОВАНО:
A6: Директор ООО «Нигма» | L6: _________________________________________________
L7: __________________________________________________
A9: __________________ Л.Р. Гильфанова | L9: ____________________ /
C11: Меню питания для детей в период отдыха и оздоровления ( пришкольные лагеря) на 2023г
A14: № | B14: № НТД | C14: Наименование блюд | D14: Выход, г | E14: Белки, г | F14: Жиры, г | G14: Углеводы, г | H14: Энерг. ценнность, ккал | I14: Витамин B1, мг | J14: Витамин С, мг | K14: Витамин А, мг | L14: Витамин Е, мг | M14: Ca, мг | N14: P, мг | O14: Mg, мг | P14: Fe, мг
C15: 1 день
C16: Завтрак
A18: 1 | B18: Пром | C18: Йогурт 2,5% 95 гр. | D18: 1 шт. | E18: 2.80 | F18: 2.50 | G18: 16.70 | H18: 79.00 | I18: 0.08 | J18: 2.70 | K18: 44.00 | L18: 0.00 | M18: 240.00 | N18: 180.00 | O18: 28.00 | P18: 0.20
A19: 2 | B19: 422/17 | C19: Булочка ванильная | D19: 60 | E19: 4.70 | F19: 5.00 | G19: 34.20 | H19: 200.90 | I19: 0.100 | J19: 0.000 | K19: 0.000 | L19: 0.100 | M19: 11.800 | N19: 41.300 | O19: 7.000 | P19: 0.500
A20: 3 | B20: 311/04 | C20: Каша молочная манная (жидкая) с маслом | D20: 200/5 | E20: 6.19 | F20: 6.57 | G20: 32.99 | H20: 215.91 | I20: 0.09 | J20: 2.35 | K20: 1.37 | L20: 0.57 | M20: 135.18 | N20: 122.94 | O20: 20.42 | P20: 0.43
A21: 2 | B21: ТТК №1 | C21: Чай полусладкий | D21: 200 | E21: 0.20 | F21: 0.00 | G21: 5.06 | H21: 21.04 | I21: 0.000 | J21: 0.000 | K21: 0.100 | L21: 0.000 | M21: 5.050 | N21: 8.250 | O21: 4.400 | P21: 0.840
A22: 6 | B22: Пром | C22: Хлеб Пшеничный | D22: 30 | E22: 2.30 | F22: 0.24 | G22: 14.80 | H22: 70.80 | I22: 0.000 | J22: 0.000 | K22: 0.000 | L22: 0.000 | M22: 5.700 | N22: 19.500 | O22: 3.900 | P22: 0.300
E23: =E17+E18+E19+E20+E21+E22 -> 16.19 | F23: =F17+F18+F19+F20+F21+F22 -> 14.31 | G23: =G17+G18+G19+G20+G21+G22 -> 103.75 | H23: =H17+H18+H19+H20+H21+H22 -> 587.65 | I23: =I17+I18+I19+I20+I21+I21+J22 -> 0.27 | J23: =J17+J18+J19+J20+J21+J22 -> 5.05 | K23: =K17+K18+K19+K20+K21+K22 -> 45.47 | L23: =L17+L18+L19+L20+L21+L22 -> 0.67 | M23: =M17+M18+M19+M20+M21+M22 -> 397.73 | N23: =N17+N18+N19+N19+N20+N21+N22 -> 413.29 | O23: =O17+O18+O19+O20+O21+O22 -> 63.72 | P23: =P17+P18+P19+P20+P21+P22 -> 2.27
B24: 442 | C24: Сок | D24: 200 | E24: 1.00 | F24: 0.20 | G24: 20.20 | H24: 86.00 | I24: 0.000 | J24: 4.000 | K24: 0.000 | L24: 0.000 | M24: 14.000 | N24: 14.000 | O24: 8.000 | P24: 2.800
C25: Обед
A26: 1 | B26: 71 | C26: Огурец свежий порционно | D26: 50 | E26: 0.50 | F26: 0.06 | G26: 1.50 | H26: 8.40 | I26: 0.020 | J26: 2.940 | K26: 0.000 | L26: 0.060 | M26: 10.200 | N26: 18.000 | O26: 8.400 | P26: 0.300
A27: 2 | B27: ТТК №28 | C27: Суп гречневый на мясокостном бульоне (говяжий) | D27: 250 | E27: 6.37 | F27: 13.71 | G27: 10.52 | H27: 225.95 | I27: 0.03 | J27: 6.91 | K27: 1.14 | L27: 0.31 | M27: 14.16 | N27: 110.15 | O27: 43.05 | P27: 1.03
A28: 3 | B28: 312/17 | C28: Пюре картофельное с маслом | D28: 180/5 | E28: 3.71 | F28: 9.94 | G28: 26.40 | H28: 206.40 | I28: 0.200 | J28: 9.530 | K28: 0.100 | L28: 0.400 | M28: 57.370 | N28: 101.700 | O28: 9.600 | P28: 1.400
A29: 4 | B29: ТТК №37 | C29: Котлеты "Любимые" с припущенными овощами (мексиканская смесь) | D29: 75/25 | E29: 10.25 | F29: 10.55 | G29: 14.40 | H29: 190.30 | I29: 0.083 | J29: 0.035 | K29: 0.021 | L29: 0.850 | M29: 16.840 | N29: 124.370 | O29: 30.550 | P29: 1.340
A30: 5 | B30: ТТК 2 | C30: Компот полусладкий из изюма | D30: 200 | E30: 0.27 | F30: 0.00 | G30: 15.63 | H30: 63.58 | I30: 0.020 | J30: 0.000 | K30: 0.000 | L30: 0.000 | M30: 12.100 | N30: 19.350 | O30: 6.300 | P30: 0.470
A31: 6 | B31: Пром | C31: Хлеб Пшеничный | D31: 30 | E31: 2.30 | F31: 0.24 | G31: 14.80 | H31: 70.80 | I31: 0.000 | J31: 0.000 | K31: 0.000 | L31: 0.000 | M31: 5.700 | N31: 19.500 | O31: 3.900 | P31: 0.300
A32: 7 | B32: Пром | C32: Хлеб Ржаной (ржано-пшеничный) | D32: 30 | E32: 1.98 | F32: 0.36 | G32: 10.02 | H32: 51.30 | I32: 0.060 | J32: 0.000 | K32: 0.000 | L32: 0.330 | M32: 10.500 | N32: 48.000 | O32: 13.500 | P32: 1.200
A33: 8 | B33: 338/17 | C33: Плоды и ягоды свежие (яблоки) | D33: 200 | E33: 0.80 | F33: 0.80 | G33: 14.93 | H33: 94.00 | I33: 0.600 | J33: 16.000 | K33: 0.000 | L33: 1.730 | M33: 32.000 | N33: 29.330 | O33: 21.300 | P33: 0.060
E35: =SUM(E26:E34) -> 26.18 | F35: =SUM(F26:F34) -> 35.66 | G35: =SUM(G26:G34) -> 108.20 | H35: =SUM(H26:H33) -> 910.73 | I35: 1.013 | J35: 35.415 | K35: 1.261 | L35: 3.680 | M35: 158.870 | N35: 470.400 | O35: 136.600 | P35: 6.100
C36: Итого за день | E36: =E23+E24+E35 -> 43.37 | F36: =E36+F24+F35 -> 79.23 | G36: =G23+G24+G35 -> 232.15 | H36: 1584.38 | I36: 1.283 | J36: 44.465 | K36: 46.731 | L36: 4.350 | M36: 570.600 | N36: 897.690 | O36: 208.320 | P36: 11.170
C37: 2 день
B38: 203/16 | C38: Запеканка рисовая с творогом с повидлом | D38: 180/20 | E38: 12.49 | F38: 10.03 | G38: 66.59 | H38: 407.00 | I38: 0.08 | J38: 0.11 | K38: 0.00 | L38: 2.10 | M38: 102.00 | N38: 209.40 | O38: 43.80 | P38: 1.68
A39: 4 | B39: Пром | C39: Батон | D39: 30 | E39: 2.30 | F39: 0.90 | G39: 15.40 | H39: 78.60 | I39: 0.000 | J39: 0.000 | K39: 0.000 | L39: 0.000 | M39: 5.700 | N39: 19.500 | O39: 3.900 | P39: 0.300
A40: 2 | B40: ТТК №1 | C40: Чай полусладкий | D40: 200 | E40: 0.20 | F40: 0.00 | G40: 5.06 | H40: 21.04 | I40: 0.000 | J40: 0.000 | K40: 0.100 | L40: 0.000 | M40: 5.050 | N40: 8.250 | O40: 4.400 | P40: 0.840
A41: 3 | B41: 338/17 | C41: Плоды и ягоды свежие (мандарины) | D41: 120 | E41: 0.90 | F41: 0.22 | G41: 22.85 | H41: 96.00 | I41: 0.060 | J41: 39.900 | K41: 0.000 | L41: 1.050 | M41: 37.050 | N41: 48.000 | O41: 36.000 | P41: 9.156
A42: 4 | E42: =SUM(E38:E41) -> 15.89 | F42: 11.15 | G42: 109.90 | H42: 602.64 | I42: 0.140 | J42: 40.010 | K42: 0.100 | L42: 3.150 | M42: 149.800 | N42: 285.150 | O42: 88.100 | P42: 11.976
B43: 442 | C43: Сок | D43: 200 | E43: 1.00 | F43: 0.20 | G43: 20.20 | H43: 86.00 | I43: 0.000 | J43: 4.000 | K43: 0.000 | L43: 0.000 | M43: 14.000 | N43: 14.000 | O43: 8.000 | P43: 2.800
C44: Обед
A45: 1 | B45: 71 | C45: Помидор свежий порционно | D45: 50 | E45: 0.55 | F45: 0.10 | G45: 1.90 | H45: 11.00 | I45: 0.020 | J45: 8.750 | K45: 0.000 | L45: 0.060 | M45: 7.000 | N45: 18.000 | O45: 10.000 | P45: 0.450
A46: 2 | B46: 148/04 | C46: Суп-лапша домашняя с цыплятами отварными (грудка) | D46: 250/25 | E46: 7.88 | F46: 12.08 | G46: 10.91 | H46: 183.79 | I46: 0.09 | J46: 3.23 | K46: 0.7 | L46: 0.28 | M46: 105.94 | N46: 130.51 | O46: 10.04 | P46: 1.09
A47: 3 | B47: ТТК №9 | C47: Фрикадельки "Особые" с соусом из сырья | D47: 50/50 | E47: 12.54 | F47: 19.04 | G47: 9.93 | H47: 261.21 | I47: 0.010 | J47: 0.110 | K47: 3.330 | L47: 0.110 | M47: 186.250 | N47: 6.200 | O47: 25.180 | P47: 1.150
A48: 4 | B48: 171/17 | C48: Каша гречневая рассыпчатая | D48: 180 | E48: 10.10 | F48: 7.50 | G48: 45.90 | H48: 291.00 | I48: 0.300 | J48: 0.000 | K48: 0.000 | L48: 5.600 | M48: 27.000 | N48: 224.200 | O48: 150.700 | P48: 5.300
A49: 5 | B49: ТТК №3 | C49: Компот из смеси сухофруктов (полусладкий) | D49: 200 | E49: 0.50 | F49: 0.02 | G49: 19.43 | H49: 79.92 | I49: 0.000 | J49: 0.030 | K49: 0.750 | L49: 0.000 | M49: 17.250 | N49: 28.800 | O49: 13.800 | P49: 1.950
A50: 7 | B50: Пром | C50: Хлеб Пшеничный | D50: 30 | E50: 2.30 | F50: 0.24 | G50: 14.80 | H50: 70.80 | I50: 0.000 | J50: 0.000 | K50: 0.000 | L50: 0.000 | M50: 5.700 | N50: 19.500 | O50: 3.900 | P50: 0.300
A51: 8 | B51: Пром | C51: Хлеб Ржаной (ржано-пшеничный) | D51: 30 | E51: 1.98 | F51: 0.36 | G51: 10.02 | H51: 51.30 | I51: 0.060 | J51: 0.000 | K51: 0.000 | L51: 0.330 | M51: 10.500 | N51: 48.000 | O51: 13.500 | P51: 1.200
A52: 9 | E52: =SUM(E45:E51) -> 35.85 | F52: 39.34 | G52: 112.89 | H52: 949.02 | I52: 0.480 | J52: 12.120 | K52: 4.780 | L52: 6.380 | M52: 359.640 | N52: 475.210 | O52: 227.120 | P52: =SUM(P51) -> 1.200
C53: Итого за день | E53: =E42+E43+E52 -> 52.74 | F53: 50.69 | G53: 242.99 | H53: 1637.66 | I53: 0.620 | J53: 56.130 | K53: 4.880 | L53: 9.530 | M53: 523.440 | N53: 774.360 | O53: 323.220 | P53: 15.976
C54: 3 день
A55: 7 | B55: 338 | C55: Плоды и ягоды свежие (груша) | D55: 200 | E55: 1.07 | F55: 0.80 | G55: 27.47 | H55: 125.33 | I55: 0.000 | J55: 13.330 | K55: 0.000 | L55: 0.930 | M55: 50.670 | N55: 42.670 | O55: 32.000 | P55: 5.300
A56: 1 | B56: 174/17 | C56: Каша рисовая молочная вязкая | D56: 200 | E56: 5.70 | F56: 8.01 | G56: 38.40 | H56: 249.60 | I56: 0.050 | J56: 1.300 | K56: 0.050 | L56: 0.910 | M56: 122.900 | N56: 150.000 | O56: 34.900 | P56: 1.300
B57: 7/10 | C57: Сыр порциями | D57: 15 | E57: 4.42 | F57: 4.16 | G57: 0 | H57: 55.11 | I57: 0 | J57: 0 | K57: 0.12 | L57: 0.07 | M57: 165 | N57: 99 | O57: 9.08 | P57: 0.12
A58: 3 | B58: 377/17 | C58: Чай с лимоном полусладкий | D58: 200/10/7 | E58: 0.27 | F58: 0.06 | G58: 15.23 | H58: 63.00 | I58: 0.003 | J58: 2.800 | K58: 0.000 | L58: 0.014 | M58: 3.250 | N58: 1.540 | O58: 0.840 | P58: 0.087
A59: 4 | B59: Пром | C59: Батон | D59: 30 | E59: 2.30 | F59: 0.90 | G59: 15.40 | H59: 78.60 | I59: 0.000 | J59: 0.000 | K59: 0.000 | L59: 0.000 | M59: 5.700 | N59: 19.500 | O59: 3.900 | P59: 0.300
A60: 5 | E60: =SUM(E55:E59) -> 13.76 | F60: 13.93 | G60: 96.50 | H60: 571.64 | I60: 0.053 | J60: 17.430 | K60: 0.170 | L60: 1.924 | M60: 347.520 | N60: 312.710 | O60: 80.720 | P60: 7.107
B61: 442 | C61: Сок | D61: 200 | E61: 1.00 | F61: 0.20 | G61: 20.20 | H61: 86.00 | I61: 0.000 | J61: 4.000 | K61: 0.000 | L61: 0.000 | M61: 14.000 | N61: 14.000 | O61: 8.000 | P61: 2.800
C62: Обед
B63: 25/04 | C63: Салат Степной | D63: 100 | E63: 2.15 | F63: 8.30 | G63: 11.90 | H63: 130.50 | I63: 0.170 | J63: 17.300 | K63: 0.100 | L63: 0.200 | M63: 40.400 | N63: 15.700 | O63: 23.400 | P63: 1.020
A64: 1 | B64: 82/17 | C64: Борщ с капустой и картофелем с мясными фрикадельками со сметаной | D64: 230/20/5 | E64: 7.53 | F64: 9.72 | G64: 14.00 | H64: 174.60 | I64: 0.100 | J64: 10.560 | K64: 0.310 | L64: 2.100 | M64: 47.900 | N64: 101.600 | O64: 34.300 | P64: 2.100
A65: 2 | B65: 202/17 | C65: Макаронные изделия отварные с маслом | D65: 180/5 | E65: 8.50 | F65: 5.90 | G65: 54.70 | H65: 305.90 | I65: 0.100 | J65: 0.000 | K65: 0.000 | L65: 1.800 | M65: 14.300 | N65: 63.500 | O65: 11.500 | P65: 1.400
A66: 2 | B66: ТТК№14 | C66: Птица тушеная в соусе (грудка) | D66: 50/50 | E66: 16.00 | F66: 4.00 | G66: 3.00 | H66: 125.00 | I66: 0.080 | J66: 1.250 | K66: 0.042 | L66: 0.286 | M66: 11.450 | N66: 153.390 | O66: 22.430 | P66: 1.230
A67: 3 | B67: 388/17 | C67: Напиток из шиповника | D67: 200 | E67: 3.28 | F67: 3.55 | G67: 17.15 | H67: 113.67 | I67: 0.032 | J67: 1 | K67: 0.02 | L67: 0.006 | M67: 121.6 | N67: 106.42 | O67: 15.8 | P67: 0.36
A68: 5 | B68: Пром | C68: Хлеб Пшеничный | D68: 30 | E68: 2.30 | F68: 0.24 | G68: 14.80 | H68: 70.80 | I68: 0.000 | J68: 0.000 | K68: 0.000 | L68: 0.000 | M68: 5.700 | N68: 19.500 | O68: 3.900 | P68: 0.300
A69: 6 | B69: Пром | C69: Хлеб Ржаной (ржано-пшеничный) | D69: 30 | E69: 1.98 | F69: 0.36 | G69: 10.02 | H69: 51.30 | I69: 0.060 | J69: 0.000 | K69: 0.000 | L69: 0.330 | M69: 10.500 | N69: 48.000 | O69: 13.500 | P69: 1.200
A71: 8 | E71: =SUM(E63:E70) -> 41.74 | F71: 32.07 | G71: 125.57 | H71: 971.77 | I71: 0.542 | J71: 30.110 | K71: 0.472 | L71: 4.722 | M71: 251.850 | N71: 508.110 | O71: 124.830 | P71: 7.610
C72: итого за день | E72: =E60+E61+E71 -> 56.50 | F72: =F60+F61+F71 -> 46.20 | G72: =G60+G61+G71 -> 242.27 | H72: =H60+H61+H71 -> 1629.41 | I72: =SUM(I60+I61+I71) -> 0.595 | J72: =J60+J61+J71 -> 51.540 | K72: 0.642 | L72: 6.646 | M72: 613.370 | N72: 834.820 | O72: 213.550 | P72: 17.517
C73: 4 день
A74: 1 | B74: 210/17 | C74: Омлет натуральный с маслом | D74: 180/5 | E74: 13.80 | F74: 27.10 | G74: 3.10 | H74: 310.00 | I74: 0.100 | J74: 0.200 | K74: 0.300 | L74: 5.600 | M74: 106.100 | N74: 211.900 | O74: 16.800 | P74: 2.300
A75: 2 | B75: 377/17 | C75: Чай с лимоном полусладкий | D75: 200/10/7 | E75: 0.27 | F75: 0.06 | G75: 15.23 | H75: 63.00 | I75: 0.003 | J75: 2.800 | K75: 0.000 | L75: 0.014 | M75: 3.250 | N75: 1.540 | O75: 0.840 | P75: 0.087
A76: 3 | B76: Пром | C76: Батон | D76: 30 | E76: 2.30 | F76: 0.90 | G76: 15.40 | H76: 78.60 | I76: 0.000 | J76: 0.000 | K76: 0.000 | L76: 0.000 | M76: 5.700 | N76: 19.500 | O76: 3.900 | P76: 0.300
A77: 4 | B77: ТТК №26 | C77: Блинчик с повидлом (из п/ф) | D77: 63 | E77: 2.10 | F77: 8.12 | G77: 21.50 | H77: 207.46 | I77: 0.000 | J77: 0.030 | K77: 0.060 | L77: 0.000 | M77: 0.000 | N77: 0.000 | O77: 0.000 | P77: 0.000
A78: 5 | E78: =SUM(E74:E77) -> 18.47 | F78: 36.18 | G78: 55.23 | H78: 659.06 | I78: 0.103 | J78: 3.030 | K78: 0.360 | L78: 5.614 | M78: 115.050 | N78: 232.940 | O78: 21.540 | P78: 2.687
B79: 442 | C79: Сок | D79: 200 | E79: 1.00 | F79: 0.20 | G79: 20.20 | H79: 86.00 | I79: 0.000 | J79: 4.000 | K79: 0.000 | L79: 0.000 | M79: 14.000 | N79: 14.000 | O79: 8.000 | P79: 2.800
C80: Обед
A81: 1 | B81: 71/17 | C81: Огурец свежий порционно | D81: 50 | E81: 0.50 | F81: 0.06 | G81: 1.50 | H81: 8.40 | I81: 0.020 | J81: 2.940 | K81: 0.000 | L81: 0.060 | M81: 10.200 | N81: 18.000 | O81: 8.400 | P81: 0.300
A82: 1 | B82: 132/04 | C82: Рассольник "Ленинградский" с цыплятами отварными (грудка) со сметаной | D82: 250/25/10 | E82: 8.11 | F82: 12.25 | G82: 10.23 | H82: 183.61 | I82: 0.05 | J82: 6.13 | K82: 0.31 | L82: 0.28 | M82: 103.36 | N82: 93.03 | O82: 20.7 | P82: 1.09
A83: 2 | B83: ТТК №27 | C83: Котлеты "Крестьянские" с припущ. овощами (кукуруза конс.) | D83: 75/15. | E83: 8.89 | F83: 10.64 | G83: 8.63 | H83: 165.63 | I83: 1.75 | J83: 0.1 | K83: 0.01 | L83: 0.23 | M83: 10.66 | N83: 94.76 | O83: 16.27 | P83: 1.07
A84: 3 | B84: 312/17 | C84: Пюре картофельное с маслом | D84: 180/5 | E84: 3.71 | F84: 9.94 | G84: 26.40 | H84: 206.40 | I84: 0.200 | J84: 9.530 | K84: 0.100 | L84: 0.400 | M84: 57.370 | N84: 101.700 | O84: 9.600 | P84: 1.400
A85: 4 | B85: 342/17 | C85: Компот из свежих плодов (яблок) полусладкий | D85: 200 | E85: 0.20 | F85: 0.20 | G85: 18.40 | H85: 76.30 | I85: 0.000 | J85: 1.600 | K85: 0.000 | L85: 0.300 | M85: 13.000 | N85: 4.000 | O85: 4.400 | P85: 0.800
A86: 5 | B86: Пром | C86: Хлеб Пшеничный | D86: 30 | E86: 2.30 | F86: 0.24 | G86: 14.80 | H86: 70.80 | I86: 0.000 | J86: 0.000 | K86: 0.000 | L86: 0.000 | M86: 5.700 | N86: 19.500 | O86: 3.900 | P86: 0.300
A87: 6 | B87: Пром | C87: Хлеб Ржаной (ржано-пшеничный) | D87: 30 | E87: 1.98 | F87: 0.36 | G87: 10.02 | H87: 51.30 | I87: 0.060 | J87: 0.000 | K87: 0.000 | L87: 0.330 | M87: 10.500 | N87: 48.000 | O87: 13.500 | P87: 1.200
A88: 8 | B88: 338/17 | C88: Плоды и ягоды свежие (яблоки) | D88: 200 | E88: 0.80 | F88: 0.80 | G88: 14.93 | H88: 94.00 | I88: 0.600 | J88: 16.000 | K88: 0.000 | L88: 1.730 | M88: 32.000 | N88: 29.330 | O88: 21.300 | P88: 0.060
E89: =SUM(E81:E88) -> 26.49 | F89: 34.49 | G89: 104.91 | H89: 856.44 | I89: 2.680 | J89: 36.300 | K89: 0.420 | L89: 3.330 | M89: 242.790 | N89: 408.320 | O89: 98.070 | P89: 6.220
E90: =E78+E79+E89 -> 45.96 | F90: 70.87 | G90: 180.34 | H90: 1601.50 | I90: 2.783 | J90: 43.330 | K90: 0.780 | L90: 8.944 | M90: 371.840 | N90: 655.260 | O90: 127.610 | P90: 11.707
C91: 5 день
B92: 338/17 | C92: Плоды и ягоды свежие (яблоки) | D92: 200 | E92: 0.80 | F92: 0.80 | G92: 14.93 | H92: 94.00 | I92: 0.600 | J92: 16.000 | K92: 0.000 | L92: 1.730 | M92: 32.000 | N92: 29.330 | O92: 21.300 | P92: 0.060
A93: 1 | B93: Пром | C93: Йогурт 2,5% 95 гр. | D93: 1 шт. | E93: 2.80 | F93: 2.50 | G93: 16.70 | H93: 79.00 | I93: 0.08 | J93: 2.70 | K93: 44.00 | L93: 0.00 | M93: 240.00 | N93: 180.00 | O93: 28.00 | P93: 0.20
A94: 2 | B94: 173/17 | C94: Каша молочная пшеничная жидкая с маслом | D94: 200/5 | E94: 8.64 | F94: 9.24 | G94: 38.64 | H94: 312.00 | I94: 0.130 | J94: 0.900 | K94: 0.050 | L94: 0.800 | M94: 146.770 | N94: 188.300 | O94: 37.400 | P94: 2.100
A95: 3 | B95: ТТК №18 | C95: Какао с молоком (полусладкое) | D95: 200 | E95: 3.28 | F95: 3.55 | G95: 17.15 | H95: 113.67 | I95: 0.032 | J95: 1 | K95: 0.02 | L95: 0.006 | M95: 121.6 | N95: 106.42 | O95: 15.8 | P95: 0.36
A96: 4 | B96: Пром | C96: Батон | D96: 30 | E96: 2.30 | F96: 0.90 | G96: 15.40 | H96: 78.60 | I96: 0.000 | J96: 0.000 | K96: 0.000 | L96: 0.000 | M96: 5.700 | N96: 19.500 | O96: 3.900 | P96: 0.300
A97: 5 | E97: =SUM(E92:E96) -> 17.82 | F97: 16.99 | G97: 102.82 | H97: 677.27 | I97: 0.842 | J97: 20.600 | K97: 44.070 | L97: 2.536 | M97: 546.070 | N97: 523.550 | O97: 106.400 | P97: 3.020
B98: 442 | C98: Сок | D98: 200 | E98: 1.00 | F98: 0.20 | G98: 20.20 | H98: 86.00 | I98: 0.000 | J98: 4.000 | K98: 0.000 | L98: 0.000 | M98: 14.000 | N98: 14.000 | O98: 8.000 | P98: 2.800
C99: Обед
A100: 1 | B100: 71/17 | C100: Помидор свежий порционно | D100: 50 | E100: 0.55 | F100: 0.10 | G100: 1.90 | H100: 11.00 | I100: 0.020 | J100: 8.750 | K100: 0.000 | L100: 0.060 | M100: 7.000 | N100: 18.000 | O100: 10.000 | P100: 0.450
A101: 1 | B101: 111/17 | C101: Суп с макаронными изделиями с мясными фрикадельками | D101: 230/20 | E101: 6.90 | F101: 8.15 | G101: 11.70 | H101: 148.03 | I101: 0.000 | J101: 0.730 | K101: 0.210 | L101: 0.630 | M101: 21.500 | N101: 64.300 | O101: 14.220 | P101: 1.150
A102: 2 | B102: 265/17 | C102: Плов из говядины | D102: 50/170 | E102: 24.20 | F102: 24.70 | G102: 38.20 | H102: 472.20 | I102: 0.090 | J102: 1.900 | K102: 0.900 | L102: 0.000 | M102: 20.900 | N102: 211.800 | O102: 54.200 | P102: 3.850
A103: 3 | B103: ТТК №3 | C103: Компот из смеси сухофруктов (полусладкий) | D103: 200 | E103: 0.50 | F103: 0.02 | G103: 19.43 | H103: 79.92 | I103: 0.000 | J103: 0.030 | K103: 0.750 | L103: 0.000 | M103: 17.250 | N103: 28.800 | O103: 13.800 | P103: 1.950
A104: 4 | B104: Пром | C104: Хлеб Пшеничный | D104: 30 | E104: 2.30 | F104: 0.24 | G104: 14.80 | H104: 70.80 | I104: 0.000 | J104: 0.000 | K104: 0.000 | L104: 0.000 | M104: 5.700 | N104: 19.500 | O104: 3.900 | P104: 0.300
A105: 5 | B105: Пром | C105: Хлеб Ржаной (ржано-пшеничный) | D105: 30 | E105: 1.98 | F105: 0.36 | G105: 10.02 | H105: 51.30 | I105: 0.060 | J105: 0.000 | K105: 0.000 | L105: 0.330 | M105: 10.500 | N105: 48.000 | O105: 13.500 | P105: 1.200
A106: 6 | B106: 422/17 | C106: Булочка ванильная | D106: 60 | E106: 4.70 | F106: 5.00 | G106: 34.20 | H106: 200.90 | I106: 0.100 | J106: 0.000 | K106: 0.000 | L106: 0.100 | M106: 11.800 | N106: 41.300 | O106: 7.000 | P106: 0.500
E107: =SUM(E100:E106) -> 41.13 | F107: 38.57 | G107: 130.25 | H107: 1034.15 | I107: 0.270 | J107: 11.410 | K107: 1.860 | L107: 1.120 | M107: 94.650 | N107: 431.700 | O107: 116.620 | P107: 9.400
C108: Итого за день | E108: =E97+E98+E107 -> 59.95 | F108: 55.76 | G108: 253.27 | H108: 1797.42 | I108: 1.112 | J108: 36.010 | K108: 45.930 | L108: 3.656 | M108: 654.720 | N108: 969.250 | O108: 231.020 | P108: 15.220
C109: 6 день
C110: Завтрак
B111: 338/17 | C111: Плоды и ягоды свежие (Апельсины) | D111: 200 | E111: 1.80 | F111: 0.40 | G111: 16.20 | H111: 86.20 | I111: 0.120 | J111: 120.400 | K111: 0.130 | L111: 0.000 | M111: 68.200 | N111: 74.670 | O111: 26.130 | P111: 0.600
A112: 1 | B112: 181/17 | C112: Каша молочная манная вязкая с маслом | D112: 200/5 | E112: 7.23 | F112: 8.35 | G112: 33.44 | H112: 297.82 | I112: 0.040 | J112: 0.900 | K112: 0.050 | L112: 0.800 | M112: 182.000 | N112: 122.900 | O112: 20.700 | P112: 0.400
A113: 2 | B113: ТТК №17 | C113: Кофейный напиток с молоком (полусладкий) | D113: 200 | E113: 3.00 | F113: 3.27 | G113: 18.36 | H113: 114.20 | I113: 0.040 | J113: 1.000 | K113: 0.020 | L113: 0.030 | M113: 122.900 | N113: 109.900 | O113: 22.050 | P113: 0.030
A114: 3 | B114: 227/16 | C114: Яйцо вареное | D114: 1 шт. | E114: 3.08 | F114: 4.60 | G114: 0.28 | H114: 62.84 | I114: 0.050 | J114: 1.730 | K114: 0.000 | L114: 1.050 | M114: 259.200 | N114: 211.680 | O114: 22.400 | P114: 0.220
A115: 4 | B115: Пром | C115: Батон | D115: 30 | E115: 2.30 | F115: 0.90 | G115: 15.40 | H115: 78.60 | I115: 0.000 | J115: 0.000 | K115: 0.000 | L115: 0.000 | M115: 5.700 | N115: 19.500 | O115: 3.900 | P115: 0.300
A116: 5 | E116: =SUM(E111:E115, R115) -> 17.41 | F116: 17.42 | G116: 79.63 | H116: 618.11 | I116: 0.220 | J116: 93.930 | K116: 0.170 | L116: 1.880 | M116: 620.950 | N116: 519.980 | O116: 88.650 | P116: 1.400
B117: 442 | C117: Сок | D117: 200 | E117: 1.00 | F117: 0.20 | G117: 20.20 | H117: 86.00 | I117: 0.000 | J117: 4.000 | K117: 0.000 | L117: 0.000 | M117: 14.000 | N117: 14.000 | O117: 8.000 | P117: 2.800
C118: Обед
B119: ТТК-1025 | C119: Салат Радужный | D119: 100 | E119: 2.00 | F119: 5.20 | G119: 8.30 | H119: 88.20 | I119: 0.110 | J119: 7.600 | K119: 0.000 | L119: 1.300 | M119: 31.800 | N119: 16.800 | O119: 31.200 | P119: 0.750
A120: 1 | B120: 139/04 | C120: Суп картофельный с бобовыми (горох) на мясокостном бульоне (говяжий) | D120: 250 | E120: 13.28 | F120: 8.57 | G120: 19.58 | H120: 172.61 | I120: 0.06 | J120: 11.5 | K120: 0.19 | L120: 0.49 | M120: 105.05 | N120: 182.12 | O120: 27.61 | P120: 1.12
A121: 2 | B121: 279/17 | C121: Тефтели мясные (2 вариант) | D121: 50/50 | E121: 12.54 | F121: 19.04 | G121: 9.93 | H121: 261.21 | I121: 0.010 | J121: 0.110 | K121: 3.330 | L121: 0.110 | M121: 186.250 | N121: 6.200 | O121: 25.180 | P121: 1.150
A122: 3 | B122: 312/17 | C122: Пюре картофельное с маслом | D122: 180/5 | E122: 3.71 | F122: 9.94 | G122: 26.40 | H122: 206.40 | I122: 0.200 | J122: 9.530 | K122: 0.100 | L122: 0.400 | M122: 57.370 | N122: 101.700 | O122: 9.600 | P122: 1.400
A123: 4 | B123: 342/16 | C123: Компот из свежих плодов (яблок) полусладкий | D123: 200 | E123: 0.20 | F123: 0.20 | G123: 18.40 | H123: 76.30 | I123: 0.000 | J123: 1.600 | K123: 0.000 | L123: 0.300 | M123: 13.000 | N123: 4.000 | O123: 4.400 | P123: 0.800
A124: 5 | B124: Пром | C124: Хлеб Пшеничный | D124: 30 | E124: 2.30 | F124: 0.24 | G124: 14.80 | H124: 70.80 | I124: 0.000 | J124: 0.000 | K124: 0.000 | L124: 0.000 | M124: 5.700 | N124: 19.500 | O124: 3.900 | P124: 0.300
A125: 6 | B125: Пром | C125: Хлеб Ржаной (ржано-пшеничный) | D125: 30 | E125: 1.98 | F125: 0.36 | G125: 10.02 | H125: 51.30 | I125: 0.060 | J125: 0.000 | K125: 0.000 | L125: 0.330 | M125: 10.500 | N125: 48.000 | O125: 13.500 | P125: 1.200
A126: 8 | B126: Пром | C126: Вафли | D126: 20 | E126: 0.80 | F126: 1.00 | G126: 23.20 | H126: 106.20 | I126: 0.000 | J126: 0.000 | K126: 0.000 | L126: 0.000 | M126: 4.800 | N126: 10.800 | O126: 3.000 | P126: 0.500
E127: =SUM(E119:E126) -> 36.81 | F127: 44.55 | G127: 130.63 | H127: 1033.02 | I127: 0.440 | J127: 30.340 | K127: 3.620 | L127: 2.930 | M127: 414.470 | N127: 389.120 | O127: 118.390 | P127: 7.220
C128: итого за день | E128: =E116+E117+E127 -> 55.22 | F128: 62.17 | G128: 230.46 | H128: 1737.13 | I128: 0.660 | J128: 128.270 | K128: 3.790 | L128: 4.810 | M128: 1049.420 | N128: 923.100 | O128: 215.040 | P128: 11.420
C129: 7 день
C130: Завтрак
B131: Пром | C131: Йогурт 2,5% 95 гр. | D131: 1 шт. | E131: 2.80 | F131: 2.50 | G131: 16.70 | H131: 79.00 | I131: 0.08 | J131: 2.70 | K131: 44.00 | L131: 0.00 | M131: 240.00 | N131: 180.00 | O131: 28.00 | P131: 0.20
A132: 1 | B132: 3 | C132: Бутерброды с сыром | D132: 45 | E132: 5.80 | F132: 5.30 | G132: 15.40 | H132: 133.20 | I132: 0.000 | J132: 0.100 | K132: 0.000 | L132: 0.000 | M132: 137.700 | N132: 94.500 | O132: 9.200 | P132: 0.500
A133: 2 | B133: 175/17 | C133: Каша молочная Дружба с маслом | D133: 200/5 | E133: 6.20 | F133: 9.00 | G133: 26.80 | H133: 211.80 | I133: 0.100 | J133: 0.800 | K133: 0.000 | L133: 0.400 | M133: 159.400 | N133: 143.800 | O133: 29.100 | P133: 0.600
A134: 3 | B134: 377/17 | C134: Чай с лимоном полусладкий | D134: 200/10/7 | E134: 0.27 | F134: 0.06 | G134: 15.23 | H134: 63.00 | I134: 0.003 | J134: 2.800 | K134: 0.000 | L134: 0.014 | M134: 3.250 | N134: 1.540 | O134: 0.840 | P134: 0.087
A135: 4 | B135: Пром | C135: Батон | D135: 30 | E135: 2.30 | F135: 0.90 | G135: 15.40 | H135: 78.60 | I135: 0.000 | J135: 0.000 | K135: 0.000 | L135: 0.000 | M135: 5.700 | N135: 19.500 | O135: 3.900 | P135: 0.300
A136: 5 | E136: =SUM(E131:E135) -> 17.37 | F136: 17.76 | G136: 89.53 | H136: 565.60 | I136: 0.183 | J136: 6.400 | K136: 44.000 | L136: 0.414 | M136: 546.050 | N136: 439.340 | O136: 71.040 | P136: 1.687
B137: 442 | C137: Сок | D137: 200 | E137: 1.00 | F137: 0.20 | G137: 20.20 | H137: 86.00 | I137: 0.000 | J137: 4.000 | K137: 0.000 | L137: 0.000 | M137: 14.000 | N137: 14.000 | O137: 8.000 | P137: 2.800
C138: Обед
B139: 45/17 | C139: Салат из белокачанной капусты | D139: 60 | E139: 0.85 | F139: 3.05 | G139: 5.41 | H139: 52.44 | I139: 0.02 | J139: 19.47 | K139: - | L139: 0,060 | M139: 16,980 | N139: 46,980 | O139: 6,050 | P139: 0,270
A140: 1 | B140: 124/04 | C140: Щи из свежей капусты с картофелем на мясокостном бульоне (говяжий) со сметаной | D140: 250/10 | E140: 8.17 | F140: 14.05 | G140: 8.99 | H140: 195.09 | I140: 0.05 | J140: 5.56 | K140: 0.13 | L140: 0.67 | M140: 101.37 | N140: 153.29 | O140: 19.22 | P140: 1.09
A141: 2 | B141: ТТК 6 | C141: Биточки рыбные Морячка с овощами (мексиканская смесь) | D141: 75/25 | E141: 12.90 | F141: 4.90 | G141: 9.50 | H141: 134.30 | I141: 0.160 | J141: 7.900 | K141: 0.043 | L141: 0.900 | M141: 23.800 | N141: 127.200 | O141: 49.300 | P141: 0.900
A142: 3 | B142: 202/17 | C142: Макаронные изделия отварные с маслом | D142: 180/5 | E142: 8.50 | F142: 5.90 | G142: 54.70 | H142: 305.90 | I142: 0.100 | J142: 0.000 | K142: 0.000 | L142: 1.800 | M142: 14.300 | N142: 63.500 | O142: 11.500 | P142: 1.400
A143: 4 | B143: ТТК №3 | C143: Компот из смеси сухофруктов (полусладкий) | D143: 200 | E143: 0.50 | F143: 0.02 | G143: 19.43 | H143: 79.92 | I143: 0.000 | J143: 0.030 | K143: 0.750 | L143: 0.000 | M143: 17.250 | N143: 28.800 | O143: 13.800 | P143: 1.950
A144: 5 | B144: Пром | C144: Хлеб Пшеничный | D144: 30 | E144: 2.30 | F144: 0.24 | G144: 14.80 | H144: 70.80 | I144: 0.000 | J144: 0.000 | K144: 0.000 | L144: 0.000 | M144: 5.700 | N144: 19.500 | O144: 3.900 | P144: 0.300
A145: 6 | B145: Пром | C145: Хлеб Ржаной (ржано-пшеничный) | D145: 30 | E145: 1.98 | F145: 0.36 | G145: 10.02 | H145: 51.30 | I145: 0.060 | J145: 0.000 | K145: 0.000 | L145: 0.330 | M145: 10.500 | N145: 48.000 | O145: 13.500 | P145: 1.200
A146: 7 | B146: 338/17 | C146: Плоды и ягоды свежие (Апельсины) | D146: 200 | E146: 1.80 | F146: 0.40 | G146: 16.20 | H146: 86.20 | I146: 0.120 | J146: 120.400 | K146: 0.130 | L146: 0.000 | M146: 68.200 | N146: 74.670 | O146: 26.130 | P146: 0.600
A147: 8 | E147: =SUM(E139:E146) -> 37.00 | F147: =SUM(F139:F146) -> 28.92 | G147: =SUM(G139:G146) -> 139.05 | H147: =H139+H140+H141+H142+H143+H144+H145+H146 -> 975.95 | I147: =SUM(I139:I146) -> 0.510 | J147: 153.360 | K147: 1.053 | L147: 3.700 | M147: 241.120 | N147: 514.960 | O147: 137.350 | P147: 7.440
C148: итого за день | E148: =E136+E137+E147 -> 55.37 | F148: =F136+F137+F147 -> 46.88 | G148: =SUM(G136+G137+G147) -> 248.78 | H148: =H136+H137+H147 -> 1627.55 | I148: 0.693 | J148: 163.760 | K148: 45.053 | L148: 4.114 | M148: 801.170 | N148: 968.300 | O148: 216.390 | P148: 11.927
A149: № | B149: № НТД | C149: Наименование блюд | D149: Выход, г | E149: Белки, г | F149: Жиры, г | G149: Углеводы, г | H149: Энерг. ценнность, ккал | I149: Витамин B1, мг | J149: Витамин С, мг | K149: Витамин А, мг | L149: Витамин Е, мг | M149: Ca, мг | N149: P, мг | O149: Mg, мг | P149: Fe, мг
C150: 8 день
C151: Завтрак
A152: 1 | B152: Пром | C152: Йогурт 2,5% 95 гр. | D152: 1 шт. | E152: 2.80 | F152: 2.50 | G152: 16.70 | H152: 79.00 | I152: 0.08 | J152: 2.70 | K152: 44.00 | L152: 0.00 | M152: 240.00 | N152: 180.00 | O152: 28.00 | P152: 0.20
A153: 2 | B153: Пром | C153: Вафли | D153: 20 | E153: 0.80 | F153: 1.00 | G153: 23.20 | H153: 106.20 | I153: 0.000 | J153: 0.000 | K153: 0.000 | L153: 0.000 | M153: 4.800 | N153: 10.800 | O153: 3.000 | P153: 0.500
A154: 3 | B154: 311/04 | C154: Каша молочная манная (жидкая) с маслом | D154: 200/5 | E154: 6.19 | F154: 6.57 | G154: 32.99 | H154: 215.91 | I154: 0.09 | J154: 2.35 | K154: 1.37 | L154: 0.57 | M154: 135.18 | N154: 122.94 | O154: 20.42 | P154: 0.43
A155: 4 | B155: ТТК №17 | C155: Кофейный напиток с молоком (полусладкий) | D155: 200 | E155: 3.00 | F155: 3.27 | G155: 18.36 | H155: 114.20 | I155: 0.040 | J155: 1.000 | K155: 0.020 | L155: 0.030 | M155: 122.900 | N155: 109.900 | O155: 22.050 | P155: 0.030
A156: 6 | B156: Пром | C156: Хлеб Пшеничный | D156: 30 | E156: 2.30 | F156: 0.24 | G156: 14.80 | H156: 70.80 | I156: 0.000 | J156: 0.000 | K156: 0.000 | L156: 0.000 | M156: 5.700 | N156: 19.500 | O156: 3.900 | P156: 0.300
E157: =SUM(E152:E156) -> 15.09 | F157: 13.58 | G157: 106.05 | H157: 586.11 | I157: 0.210 | J157: 6.050 | K157: 45.390 | L157: 0.600 | M157: 508.580 | N157: 443.140 | O157: 77.370 | P157: 1.460
B158: 442 | C158: Сок | D158: 200 | E158: 1.00 | F158: =SUM(F152:F156) -> 13.58 | G158: 20.20 | H158: 86.00 | I158: 0.000 | J158: 4.000 | K158: 0.000 | L158: 0.000 | M158: 14.000 | N158: 14.000 | O158: 8.000 | P158: 2.800
C159: Обед
A160: 1 | B160: 25/04 | C160: Салат Степной | D160: 100 | E160: 2.15 | F160: 8.30 | G160: 11.90 | H160: 130.50 | I160: 0.170 | J160: 17.300 | K160: 0.100 | L160: 0.200 | M160: 40.400 | N160: 15.700 | O160: 23.400 | P160: 1.020
A161: 2 | B161: ТТК №28 | C161: Суп гречневый на мясокостном бульоне (говяжий) | D161: 250 | E161: 6.37 | F161: 13.71 | G161: 10.52 | H161: 225.95 | I161: 0.03 | J161: 6.91 | K161: 1.14 | L161: 0.31 | M161: 14.16 | N161: 110.15 | O161: 43.05 | P161: 1.03
A162: 3 | B162: 321/17 | C162: Капуста тушеная | D162: 180 | E162: 4.56 | F162: 8.20 | G162: 16.00 | H162: 170.00 | I162: 0.100 | J162: 157.900 | K162: 13.100 | L162: 0.400 | M162: 130.300 | N162: 94.600 | O162: 46.600 | P162: 1.800
A163: 4 | B163: ТТК №37 | C163: Котлеты "Любимые" с овощами (мексиканская смесь) | D163: 75/25 | E163: 10.25 | F163: 10.55 | G163: 14.40 | H163: 190.30 | I163: 0.083 | J163: 0.035 | K163: 0.021 | L163: 0.850 | M163: 16.840 | N163: 124.370 | O163: 30.550 | P163: 1.340
A164: 5 | B164: ТТК 2 | C164: Компот из изюма (полусладкий) | D164: 200 | E164: 0.27 | F164: 0.00 | G164: 15.63 | H164: 63.58 | I164: 0.020 | J164: 0.000 | K164: 0.000 | L164: 0.000 | M164: 12.100 | N164: 19.350 | O164: 6.300 | P164: 0.470
A165: 6 | B165: Пром | C165: Хлеб Пшеничный | D165: 30 | E165: 2.30 | F165: 0.24 | G165: 14.80 | H165: 70.80 | I165: 0.000 | J165: 0.000 | K165: 0.000 | L165: 0.000 | M165: 5.700 | N165: 19.500 | O165: 3.900 | P165: 0.300
A166: 7 | B166: Пром | C166: Хлеб Ржаной (ржано-пшеничный) | D166: 30 | E166: 1.98 | F166: 0.36 | G166: 10.02 | H166: 51.30 | I166: 0.060 | J166: 0.000 | K166: 0.000 | L166: 0.330 | M166: 10.500 | N166: 48.000 | O166: 13.500 | P166: 1.200
A167: 8 | B167: 338/17 | C167: Плоды и ягоды свежие (яблоки) | D167: 200 | E167: 0.80 | F167: 0.80 | G167: 14.93 | H167: 94.00 | I167: 0.600 | J167: 16.000 | K167: 0.000 | L167: 1.730 | M167: 32.000 | N167: 29.330 | O167: 21.300 | P167: 0.060
E169: =SUM(E160:E168) -> 28.68 | F169: =SUM(F160:F168) -> 42.16 | G169: =SUM(G160:G168) -> 108.20 | H169: =SUM(H160:H167) -> 996.43 | I169: 1.063 | J169: 198.145 | K169: 14.361 | L169: 3.820 | M169: 262.000 | N169: 461.000 | O169: 188.600 | P169: 7.220
C170: Итого за день | E170: =E157+E158+E169 -> 44.77 | F170: 69.32 | G170: 234.45 | H170: 1668.54 | I170: 1.273 | J170: 208.195 | K170: 59.751 | L170: 4.420 | M170: 784.580 | N170: 918.140 | O170: 273.970 | P170: 11.480
C171: 9 день
A172: 1 | B172: 203/16 | C172: Запеканка рисовая с творогом с повидлом | D172: 180/20 | E172: 12.49 | F172: 10.03 | G172: 66.59 | H172: 407.00 | I172: 0.08 | J172: 0.11 | K172: 0.00 | L172: 2.10 | M172: 102.00 | N172: 209.40 | O172: 43.80 | P172: 1.68
A173: 2 | B173: 1/17 | C173: Бутерброды с маслом | D173: 40 | E173: 2.40 | F173: 9.20 | G173: 15.50 | H173: 153.40 | I173: 0.000 | J173: 0.000 | K173: 0.100 | L173: 0.200 | M173: 6.900 | N173: 21.400 | O173: 3.900 | P173: 0.300
A174: 3 | B174: ТТК №1 | C174: Чай полусладкий | D174: 200 | E174: 0.20 | F174: 0.00 | G174: 5.06 | H174: 21.04 | I174: 0.000 | J174: 0.000 | K174: 0.100 | L174: 0.000 | M174: 5.050 | N174: 8.250 | O174: 4.400 | P174: 0.840
A176: 4 | E176: =SUM(E172:E175) -> 15.09 | F176: 19.23 | G176: 87.15 | H176: 581.44 | I176: 0.080 | J176: 0.110 | K176: 0.200 | L176: 2.300 | M176: 113.950 | N176: 239.050 | O176: 52.100 | P176: 2.820
B177: 442 | C177: Сок | D177: 200 | E177: 1.00 | F177: 0.20 | G177: 20.20 | H177: 86.00 | I177: 0.000 | J177: 4.000 | K177: 0.000 | L177: 0.000 | M177: 14.000 | N177: 14.000 | O177: 8.000 | P177: 2.800
C178: Обед
A179: 1 | B179: 71/17 | C179: Помидор свежий порционно | D179: 50 | E179: 0.55 | F179: 0.10 | G179: 1.90 | H179: 11.00 | I179: 0.020 | J179: 8.750 | K179: 0.000 | L179: 0.060 | M179: 7.000 | N179: 18.000 | O179: 10.000 | P179: 0.450
A180: 2 | B180: 148/04 | C180: Суп-лапша домашняя с цыплятами отварными | D180: 250/25 | E180: 7.88 | F180: 12.08 | G180: 10.91 | H180: 183.79 | I180: 0.09 | J180: 3.23 | K180: 0.7 | L180: 0.28 | M180: 105.94 | N180: 130.51 | O180: 10.04 | P180: 1.09
A181: 3 | B181: 268/17 | C181: Котлеты из говядины | D181: 80 | E181: 12.18 | F181: 12.15 | G181: 7.74 | H181: 186.31 | I181: 0.055 | J181: 0.700 | K181: 3.330 | L181: 1.312 | M181: 12.772 | N181: 123.173 | O181: 15.610 | P181: 1.818
A182: 4 | B182: 171/17 | C182: Каша гречневая рассыпчатая | D182: 180 | E182: 10.10 | F182: 7.50 | G182: 45.90 | H182: 291.00 | I182: 0.300 | J182: 0.000 | K182: 0.000 | L182: 5.600 | M182: 27.000 | N182: 224.200 | O182: 150.700 | P182: 5.300
A183: 5 | B183: ТТК №3 | C183: Компот из смеси сухофруктов (полусладкий) | D183: 200 | E183: 0.50 | F183: 0.02 | G183: 19.43 | H183: 79.92 | I183: 0.000 | J183: 0.030 | K183: 0.750 | L183: 0.000 | M183: 17.250 | N183: 28.800 | O183: 13.800 | P183: 1.950
A184: 6 | B184: 338/17 | C184: Плоды и ягоды свежие (мандарины) | D184: 120 | E184: 0.90 | F184: 0.22 | G184: 22.85 | H184: 96.00 | I184: 0.060 | J184: 39.900 | K184: 0.000 | L184: 1.050 | M184: 37.050 | N184: 48.000 | O184: 36.000 | P184: 9.156
A185: 7 | B185: Пром | C185: Хлеб Пшеничный | D185: 30 | E185: 2.30 | F185: 0.24 | G185: 14.80 | H185: 70.80 | I185: 0.000 | J185: 0.000 | K185: 0.000 | L185: 0.000 | M185: 5.700 | N185: 19.500 | O185: 3.900 | P185: 0.300
A186: 8 | B186: Пром | C186: Хлеб Ржаной (ржано-пшеничный) | D186: 30 | E186: 1.98 | F186: 0.36 | G186: 10.02 | H186: 51.30 | I186: 0.060 | J186: 0.000 | K186: 0.000 | L186: 0.330 | M186: 10.500 | N186: 48.000 | O186: 13.500 | P186: 1.200
A187: 9 | E187: =SUM(E179:E186) -> 36.39 | F187: 32.67 | G187: 133.55 | H187: 970.12 | I187: 0.585 | J187: 52.610 | K187: 4.780 | L187: 8.632 | M187: 223.212 | N187: 640.183 | O187: 253.550 | P187: =SUM(P186) -> 1.200
C188: Итого за день | E188: =E176+E177+E187 -> 52.48 | F188: 52.10 | G188: 240.90 | H188: 1637.56 | I188: 0.665 | J188: 56.720 | K188: 4.980 | L188: 10.932 | M188: 351.162 | N188: 893.233 | O188: 313.650 | P188: 6.820
C189: 10 день
B190: 338/17 | C190: Плоды и ягоды свежие (яблоки) | D190: 200 | E190: 0.80 | F190: 0.80 | G190: 14.93 | H190: 94.00 | I190: 0.600 | J190: 16.000 | K190: 0.000 | L190: 1.730 | M190: 32.000 | N190: 29.330 | O190: 21.300 | P190: 0.060
A191: 1 | B191: 174/17 | C191: Каша рисовая молочная вязкая | D191: 200 | E191: 5.70 | F191: 8.01 | G191: 38.40 | H191: 249.60 | I191: 0.050 | J191: 1.300 | K191: 0.050 | L191: 0.910 | M191: 122.900 | N191: 150.000 | O191: 34.900 | P191: 1.300
A192: 2 | B192: 7/10 | C192: Сыр порциями | D192: 15 | E192: 4.42 | F192: 4.16 | G192: 0 | H192: 55.11 | I192: 0 | J192: 0 | K192: 0.12 | L192: 0.07 | M192: 165 | N192: 99 | O192: 9.08 | P192: 0.12
A193: 3 | B193: 377/17 | C193: Чай с лимоном полусладкий | D193: 200/10/7 | E193: 0.27 | F193: 0.06 | G193: 15.23 | H193: 63.00 | I193: 0.003 | J193: 2.800 | K193: 0.000 | L193: 0.014 | M193: 3.250 | N193: 1.540 | O193: 0.840 | P193: 0.087
A194: 4 | B194: Пром | C194: Батон | D194: 30 | E194: 2.30 | F194: 0.90 | G194: 15.40 | H194: 78.60 | I194: 0.000 | J194: 0.000 | K194: 0.000 | L194: 0.000 | M194: 5.700 | N194: 19.500 | O194: 3.900 | P194: 0.300
E195: =SUM(E190:E194) -> 13.49 | F195: 13.93 | G195: 83.96 | H195: 540.31 | I195: 0.653 | J195: 20.100 | K195: 0.170 | L195: 2.724 | M195: 328.850 | N195: 299.370 | O195: 70.020 | P195: 1.867
B196: 442 | C196: Сок | D196: 200 | E196: 1.00 | F196: 0.20 | G196: 20.20 | H196: 86.00 | I196: 0.000 | J196: 4.000 | K196: 0.000 | L196: 0.000 | M196: 14.000 | N196: 14.000 | O196: 8.000 | P196: 2.800
C197: Обед
A198: 1 | B198: 71/17 | C198: Огурец свежий порционно | D198: 50 | E198: 0.50 | F198: 0.06 | G198: 1.50 | H198: 8.40 | I198: 0.020 | J198: 2.940 | K198: 0.000 | L198: 0.060 | M198: 10.200 | N198: 18.000 | O198: 8.400 | P198: 0.300
A199: 1 | B199: 82/17 | C199: Борщ с капустой и картофелем с мясными фрикадельками со сметаной | D199: 230/20/5 | E199: 7.53 | F199: 9.72 | G199: 14.00 | H199: 174.60 | I199: 0.100 | J199: 10.560 | K199: 0.310 | L199: 2.100 | M199: 47.900 | N199: 101.600 | O199: 34.300 | P199: 2.100
A200: 2 | B200: 202/17 | C200: Макаронные изделия отварные с маслом | D200: 180/5 | E200: 8.50 | F200: 5.90 | G200: 54.70 | H200: 305.90 | I200: 0.100 | J200: 0.000 | K200: 0.000 | L200: 1.800 | M200: 14.300 | N200: 63.500 | O200: 11.500 | P200: 1.400
A201: 2 | B201: ТТК№14 | C201: Птица тушеная в соусе (грудка) | D201: 50/50 | E201: 16.00 | F201: 4.00 | G201: 3.00 | H201: 125.00 | I201: 0.080 | J201: 1.250 | K201: 0.042 | L201: 0.286 | M201: 11.450 | N201: 153.390 | O201: 22.430 | P201: 1.230
A202: 3 | B202: ТТК №18 | C202: Какао с молоком (полусладкое) | D202: 200 | E202: 3.28 | F202: 3.55 | G202: 17.15 | H202: 113.67 | I202: 0.032 | J202: 1 | K202: 0.02 | L202: 0.006 | M202: 121.6 | N202: 106.42 | O202: 15.8 | P202: 0.36
A203: 5 | B203: Пром | C203: Хлеб Пшеничный | D203: 30 | E203: 2.30 | F203: 0.24 | G203: 14.80 | H203: 70.80 | I203: 0.000 | J203: 0.000 | K203: 0.000 | L203: 0.000 | M203: 5.700 | N203: 19.500 | O203: 3.900 | P203: 0.300
A204: 6 | B204: Пром | C204: Хлеб Ржаной (ржано-пшеничный) | D204: 30 | E204: 1.98 | F204: 0.36 | G204: 10.02 | H204: 51.30 | I204: 0.060 | J204: 0.000 | K204: 0.000 | L204: 0.330 | M204: 10.500 | N204: 48.000 | O204: 13.500 | P204: 1.200
A205: 2 | B205: 422/17 | C205: Булочка ванильная | D205: 60 | E205: 4.70 | F205: 5.00 | G205: 34.20 | H205: 200.90 | I205: 0.100 | J205: 0.000 | K205: 0.000 | L205: 0.100 | M205: 11.800 | N205: 41.300 | O205: 7.000 | P205: 0.500
E206: =SUM(E198:E205) -> 44.79 | F206: 28.83 | G206: 149.37 | H206: 1050.57 | I206: 0.492 | J206: 15.750 | K206: 0.372 | L206: 4.682 | M206: 233.450 | N206: 551.710 | O206: 116.830 | P206: 7.390
C207: итого за день | E207: =E195+E196+E206 -> 59.28 | F207: =F195+F196+F206 -> 42.96 | G207: =G195+G196+G206 -> 253.53 | H207: =H195+H196+H206 -> 1676.88 | I207: =SUM(I195+I196+I206) -> 1.145 | J207: =J195+J196+J206 -> 39.850 | K207: 0.542 | L207: 7.406 | M207: 576.300 | N207: 865.080 | O207: 194.850 | P207: 12.057
C208: 11 день
A209: 1 | B209: 210/17 | C209: Омлет натуральный с маслом | D209: 180/5 | E209: 13.80 | F209: 27.10 | G209: 3.10 | H209: 310.00 | I209: 0.100 | J209: 0.200 | K209: 0.300 | L209: 5.600 | M209: 106.100 | N209: 211.900 | O209: 16.800 | P209: 2.300
A210: 2 | B210: 377/17 | C210: Чай с лимоном полусладкий | D210: 200/10/7 | E210: 0.27 | F210: 0.06 | G210: 15.23 | H210: 63.00 | I210: 0.003 | J210: 2.800 | K210: 0.000 | L210: 0.014 | M210: 3.250 | N210: 1.540 | O210: 0.840 | P210: 0.087
A211: 7 | B211: Пром | C211: Хлеб Пшеничный | D211: 30 | E211: 2.30 | F211: 0.24 | G211: 14.80 | H211: 70.80 | I211: 0.000 | J211: 0.000 | K211: 0.000 | L211: 0.000 | M211: 5.700 | N211: 19.500 | O211: 3.900 | P211: 0.300
A212: 4 | B212: ТТК №26 | C212: Блинчик с повидлом (из п/ф) | D212: 63 | E212: 2.10 | F212: 8.12 | G212: 21.50 | H212: 207.46 | I212: 0.000 | J212: 0.030 | K212: 0.060 | L212: 0.000 | M212: 0.000 | N212: 0.000 | O212: 0.000 | P212: 0.000
... 200 more rows
